bitfinex/quotes_SOLUSD_20241223
["timestamp","ask_amount","ask_price","bid_price","bid_amount"]
[1734971485995,90.4,183.2,183.1,20.61822797]
[1734971486166,90.4,183.19,183.08,20.61822797]
[1734971486583,6.2336,183.24,183.11,20.61822797]
[1734971486584,90.4,183.18,183.11,20.61822797]
[1734971487069,90.4,183.17,183.1,20.61822797]
[1734971487258,90.4,183.16,183.11,20.61822797]
[1734971487465,90.4,183.22,183.14,20.61822797]
[1734971487691,90.4,183.22,183.17,20.61822797]
[1734971487878,90.4,183.29,183.21,20.61822797]
[1734971488089,6.506,183.32,183.16,0.12549]
[1734971488090,90.4,183.25,183.24,20.61822797]
[1734971488273,90.4,183.24,183.23,20.61822797]
[1734971488975,90.4,183.29,183.23,20.61822797]
[1734971489171,90.4,183.29,183.25,20.61822797]
[1734971489596,90.4,183.31,183.27,20.61822797]
[1734971489916,90.4,183.38,183.3,20.61822797]
[1734971490201,90.4,183.38,183.27,20.0]
[1734971490202,90.4,183.38,183.32,20.61822797]
[1734971490369,90.4,183.37,183.33,20.61822797]
[1734971491401,90.4,183.48,183.33,20.61822797]
[1734971491574,90.4,183.46,183.35,20.61822797]
[1734971491769,90.4,183.45,183.37,20.61822797]
[1734971491996,90.4,183.47,183.41,20.61822797]
[1734971492199,90.4,183.46,183.41,20.61822797]
[1734971492370,90.4,183.46,183.34,0.81790893]
[1734971492371,90.4,183.48,183.45,20.61822797]
[1734971492576,90.4,183.51,183.47,20.61822797]
[1734971492786,90.4,183.5,183.49,20.61822797]
[1734971492985,20.618228,183.59,183.49,20.61822797]
[1734971492986,90.4,183.51,183.49,20.61822797]
[1734971493396,90.4,183.61,183.54,0.12549]
[1734971493590,90.4,183.6,183.59,20.61822797]
[1734971493902,90.4,183.63,183.58,20.61822797]
[1734971494101,90.4,183.62,183.56,20.61822797]
[1734971494331,90.4,183.61,183.56,33.39909337]
[1734971494802,90.4,183.6,183.52,33.39909337]
[1734971494989,90.4,183.6,183.51,33.39909337]
[1734971495184,90.4,183.6,183.53,33.39909337]
[1734971495500,90.4,183.59,183.52,33.39909337]
[1734971497009,90.4,183.59,183.5,47.02259337]
[1734971497308,90.4,183.57,183.5,33.39909337]
[1734971497482,90.4,183.56,183.48,33.39909337]
[1734971497676,90.4,183.56,183.46,13.6267]
[1734971497874,90.4,183.56,183.46,47.02579337]
[1734971498416,90.4,183.54,183.45,33.39909337]
[1734971498728,90.4,183.5,183.42,33.39909337]
[1734971499031,90.4,183.46,183.4,33.39909337]
[1734971499233,90.4,183.46,183.38,33.39909337]
[1734971499596,90.4,183.43,183.36,33.39909337]
[1734971499909,90.4,183.43,183.34,33.39909337]
[1734971500215,90.4,183.43,183.35,33.39909337]
[1734971500400,90.4,183.43,183.4,33.39909337]
[1734971500605,90.4,183.47,183.42,33.39909337]
[1734971501861,90.4,183.47,183.41,33.39909337]
[1734971502210,90.4,183.47,183.42,33.39909337]
[1734971502397,90.4,183.47,183.41,33.39909337]
[1734971503294,90.4,183.46,183.4,33.39909337]
[1734971503499,90.4,183.44,183.38,33.39909337]
[1734971503699,90.4,183.42,183.37,33.39909337]
[1734971504420,90.4,183.4,183.35,33.39909337]
[1734971504730,90.4,183.39,183.34,33.39909337]
[1734971505323,90.4,183.38,183.34,33.39909337]
[1734971505715,110.4,183.43,183.32,33.39909337]
[1734971505919,110.4,183.43,183.31,47.03659337]
[1734971506104,90.4,183.4,183.28,33.39909337]
[1734971506303,90.4,183.4,183.27,47.03959337]
[1734971506507,90.4,183.4,183.3,33.39909337]
[1734971506706,90.4,183.39,183.33,33.39909337]
[1734971506913,90.4,183.39,183.32,33.39909337]
[1734971507127,90.4,183.37,183.31,33.39909337]
[1734971507635,90.4,183.37,183.27,47.03959337]
[1734971507939,90.4,183.35,183.25,33.39909337]
[1734971508145,90.4,183.35,183.26,33.39909337]
[1734971508807,90.4,183.35,183.25,33.39909337]
[1734971509116,90.4,183.32,183.27,33.39909337]
[1734971509317,90.4,183.31,183.26,33.39909337]
[1734971509518,90.4,183.3,183.24,33.39909337]
[1734971509707,90.4,183.3,183.23,33.39909337]
[1734971509918,90.4,183.3,183.22,33.39909337]
[1734971510135,90.4,183.29,183.11,1.6624]
[1734971510445,90.4,183.28,183.16,33.39909337]
[1734971510738,90.4,183.27,183.17,33.39909337]
[1734971511105,2.7271,183.34,183.13,33.39909337]
[1734971511106,90.4,183.25,183.13,33.39909337]
[1734971511303,90.4,183.25,183.16,33.39909337]
[1734971511520,90.4,183.25,183.15,33.39909337]
[1734971512841,90.4,183.24,183.17,33.39909337]
[1734971513966,90.4,183.23,183.15,33.39909337]
[1734971514106,90.4,183.22,183.13,33.39909337]
[1734971514417,90.4,183.22,183.14,40.64952956]
[1734971514838,90.4,183.18,183.1,20.64952956]
[1734971515045,90.4,183.18,183.11,20.64952956]
[1734971515243,90.4,183.18,183.13,20.64952956]
[1734971515612,90.4,183.18,183.12,20.64952956]
[1734971515813,90.4,183.18,183.13,20.64952956]
[1734971516449,90.4,183.24,183.15,40.64952956]
[1734971516618,90.4,183.23,183.17,20.64952956]
[1734971517137,90.4,183.23,183.18,20.64952956]
[1734971517350,90.4,183.22,183.18,20.64952956]
[1734971518148,90.4,183.22,183.2,20.64952956]
[1734971518611,90.4,183.22,183.18,20.64952956]
[1734971518812,90.4,183.2,183.13,34.30062956]
[1734971519048,54.40271841,183.19,183.12,20.64952956]
[1734971519852,54.40271841,183.18,183.1,13.6536]
[1734971520345,54.40271841,183.15,183.07,34.30542956]
[1734971520554,54.40271841,183.14,183.07,13.6559]
[1734971521064,54.40271841,183.14,183.06,20.64952956]
[1734971521266,54.40271841,183.14,183.03,14.1665979]
[1734971521267,54.40271841,183.14,183.08,20.64952956]
[1734971521567,54.40271841,183.13,183.08,20.64952956]
[1734971521739,54.40271841,183.17,183.11,20.64952956]
[1734971522257,54.40271841,183.16,183.11,34.30212956]
[1734971523773,54.40271841,183.16,183.12,20.64952956]
[1734971523976,54.40271841,183.16,183.13,20.64952956]
[1734971524144,54.40271841,183.16,183.12,20.64952956]
[1734971524347,54.40271841,183.2,183.14,20.64952956]
[1734971524643,54.40271841,183.19,183.15,20.64952956]
[1734971524853,54.40271841,183.18,183.14,20.64952956]
[1734971525071,54.40271841,183.18,183.13,20.64952956]
[1734971525274,54.40271841,183.17,183.1,20.64952956]
[1734971525570,54.40271841,183.16,183.14,20.64952956]
[1734971525741,6.4982,183.22,183.14,23.902374]
[1734971525742,49.70921841,183.15,183.14,23.902374]
[1734971526078,35.62871841,183.15,183.14,37.553074]
[1734971526378,31.27331841,183.15,183.14,37.553074]
[1734971526673,26.91031841,183.15,183.14,37.553074]
[1734971526840,22.84351841,183.15,183.14,58.20260356]
[1734971527134,18.74231841,183.15,183.14,58.20260356]
[1734971527333,14.64111841,183.15,183.14,58.20260356]
[1734971527778,10.50221841,183.15,183.14,58.20260356]
[1734971527945,25.0,183.24,183.2,0.12549]
[1734971528143,25.0,183.26,183.22,20.64952956]
[1734971528347,25.0,183.25,183.23,20.64952956]
[1734971528571,8.1433,183.32,183.23,20.64952956]
[1734971528572,25.0,183.3,183.24,23.902374]
[1734971528771,25.0,183.29,183.26,20.64952956]
[1734971529055,25.0,183.35,183.28,20.64952956]
[1734971529239,25.0,183.34,183.29,20.64952956]
[1734971529440,25.0,183.33,183.28,20.64952956]
[1734971529677,25.0,183.32,183.23,20.64952956]
[1734971530152,25.0,183.32,183.24,70.93566011]
[1734971530658,25.0,183.31,183.25,33.64096611]
[1734971530876,25.0,183.31,183.26,33.51547611]
[1734971531042,25.0,183.31,183.25,33.51547611]
[1734971532265,25.0,183.31,183.22,33.51547611]
[1734971532442,25.0,183.29,183.25,33.51547611]
[1734971532643,25.0,183.28,183.25,33.51547611]
[1734971533179,25.0,183.36,183.24,33.51547611]
[1734971533372,25.0,183.35,183.23,33.51547611]
[1734971533561,25.0,183.35,183.22,33.51547611]
[1734971533760,25.0,183.34,183.22,33.51547611]
[1734971533973,25.0,183.34,183.23,53.51547611]
[1734971534848,25.0,183.33,183.23,53.51547611]
[1734971535467,25.0,183.33,183.22,33.51547611]
[1734971536002,25.0,183.29,183.19,33.51547611]
[1734971536174,25.0,183.29,183.18,33.51547611]
[1734971536364,25.0,183.29,183.17,13.6484]
[1734971536674,8.1433,183.38,183.17,13.6484]
[1734971536675,25.0,183.27,183.25,33.51547611]
[1734971536887,25.0,183.34,183.26,33.51547611]
[1734971537091,25.0,183.32,183.26,33.51547611]
[1734971537284,25.0,183.31,183.25,33.51547611]
[1734971537602,25.0,183.28,183.17,33.51547611]
[1734971537772,25.0,183.26,183.14,33.51547611]
[1734971538093,25.0,183.26,183.1,33.51547611]
[1734971538094,20.0,183.22,183.1,33.51547611]
[1734971538268,25.0,183.2,183.1,33.51547611]
[1734971538967,25.0,183.2,183.14,33.51547611]
[1734971539288,25.0,183.23,183.18,33.64096611]
[1734971539490,25.0,183.25,183.21,33.51547611]
[1734971539664,25.0,183.29,183.24,33.51547611]
[1734971539864,25.0,183.28,183.25,33.51547611]
[1734971540096,25.0,183.31,183.26,33.51547611]
[1734971540406,25.0,183.31,183.27,33.64096611]
[1734971540775,25.0,183.3,183.27,33.51547611]
[1734971540975,25.0,183.32,183.27,33.51547611]
[1734971541291,25.0,183.3,183.24,33.51547611]
[1734971541601,25.0,183.26,183.19,33.51547611]
[1734971541784,25.0,183.25,183.17,47.16397611]
[1734971541959,25.0,183.25,183.18,33.51547611]
[1734971542163,25.0,183.25,183.19,33.64096611]
[1734971542388,25.0,183.3,183.22,33.51547611]
[1734971542572,25.0,183.32,183.26,0.12549]
[1734971542773,25.0,183.32,183.27,33.51547611]
[1734971543094,25.0,183.29,183.24,33.51547611]
[1734971543300,25.0,183.27,183.22,33.51547611]
[1734971543599,25.0,183.26,183.2,67.16097611]
[1734971543759,25.0,183.26,183.21,33.51547611]
[1734971544268,25.0,183.25,183.21,33.51547611]
[1734971544475,25.0,183.25,183.22,33.51547611]
[1734971545363,25.0,183.25,183.21,57.41785011]
[1734971545783,25.0,183.32,183.28,23.902374]
[1734971545993,25.0,183.36,183.32,0.12549]
[1734971546196,25.0,183.36,183.3,33.51547611]
[1734971546401,25.0,183.36,183.28,33.51547611]
[1734971546581,25.0,183.34,183.26,33.51547611]
[1734971546927,25.0,183.32,183.27,57.29236011]
[1734971547099,25.0,183.32,183.27,33.51547611]
[1734971547266,25.0,183.3,183.25,33.51547611]
[1734971547472,25.0,183.36,183.26,33.51547611]
[1734971547885,25.0,183.36,183.27,57.29236011]
[1734971548203,25.0,183.34,183.28,33.51547611]
[1734971548400,25.0,183.34,183.27,70.93336011]
[1734971548567,25.0,183.34,183.27,13.641]
[1734971548765,25.0,183.34,183.27,47.15647611]
[1734971549810,25.0,183.34,183.28,33.51547611]
[1734971550103,25.0,183.33,183.3,33.51547611]
[1734971550273,6.0456,183.38,183.32,33.51547611]
[1734971550274,25.0,183.35,183.32,33.51547611]
[1734971551077,25.0,183.37,183.33,57.41785011]
[1734971551296,25.0,183.42,183.36,33.51547611]
[1734971551479,25.0,183.4,183.38,33.51547611]
[1734971551703,25.0,183.48,183.39,47.14757611]
[1734971551880,25.0,183.48,183.41,33.51547611]
[1734971552207,25.0,183.48,183.39,34.22388672]
[1734971552367,25.0,183.48,183.39,13.6321]
[1734971552568,25.0,183.48,183.4,44.36867072]
[1734971553005,25.0,183.48,183.41,20.71727672]
[1734971553187,25.0,183.55,183.45,20.59178672]
[1734971553385,25.0,183.53,183.46,20.59178672]
[1734971553607,25.0,183.53,183.45,20.59178672]
[1734971553904,25.0,183.51,183.42,13.6295]
[1734971554072,25.0,183.51,183.43,44.49416072]
[1734971554276,25.0,183.57,183.46,33.44497116]
[1734971554474,25.0,183.56,183.49,33.44497116]
[1734971554710,25.0,183.55,183.51,33.44497116]
[1734971555208,25.0,183.55,183.49,33.44497116]
[1734971555400,25.0,183.53,183.45,33.44497116]
[1734971555707,25.0,183.52,183.42,13.6295]
[1734971556013,25.0,183.51,183.42,13.6295]
[1734971556305,25.0,183.51,183.42,47.07447116]
[1734971556791,25.0,183.5,183.41,33.44497116]
[1734971557172,25.0,183.47,183.39,33.44497116]
[1734971557405,25.0,183.47,183.38,33.44497116]
[1734971557610,20.0,183.54,183.43,33.44497116]
[1734971557782,10.5674,183.58,183.36,13.6343]
[1734971557783,25.0,183.51,183.47,33.44401424]
[1734971557983,25.0,183.57,183.5,33.44401424]
[1734971558236,25.0,183.56,183.51,33.44401424]
[1734971558407,25.0,183.55,183.52,33.44401424]
[1734971558720,25.0,183.56,183.51,33.44401424]
[1734971558901,25.0,183.55,183.5,33.44401424]
[1734971559104,25.0,183.53,183.5,33.44401424]
[1734971559297,25.0,183.53,183.51,33.44401424]
[1734971560191,6.4819,183.58,183.52,57.34638824]
[1734971560415,25.0,183.62,183.55,33.44401424]
[1734971560626,25.0,183.61,183.56,33.44401424]
[1734971560803,25.0,183.61,183.55,33.44401424]
[1734971561199,25.0,183.6,183.53,33.44401424]
[1734971561393,25.0,183.6,183.52,47.06641424]
[1734971561714,25.0,183.6,183.52,13.6224]
[1734971561903,25.0,183.59,183.52,47.06641424]
[1734971562329,25.0,183.59,183.52,13.6224]
[1734971563696,25.0,183.58,183.52,13.6224]
[1734971564413,25.0,183.58,183.5,33.42163107]
[1734971564734,25.0,183.58,183.49,13.6247]
[1734971564938,25.0,183.55,183.46,47.04853107]
[1734971565096,25.0,183.55,183.46,13.6269]
[1734971565293,25.0,183.54,183.46,13.6269]
[1734971565499,25.0,183.52,183.42,47.05103107]
[1734971565703,6.0707,183.51,183.42,13.6294]
[1734971566207,6.0707,183.51,183.42,47.05103107]
[1734971566906,6.0707,183.51,183.42,0.12549]
[1734971567107,25.0,183.5,183.4,33.42163107]
[1734971567530,25.0,183.49,183.42,0.12549]
[1734971567823,25.0,183.49,183.42,33.54712107]
[1734971568046,25.0,183.49,183.44,0.12549]
[1734971568326,25.0,183.56,183.49,0.12549]
[1734971569507,25.0,183.56,183.49,33.42163107]
[1734971569706,25.0,183.56,183.49,0.12549]
[1734971570222,6.0707,183.57,183.49,33.54712107]
[1734971570223,25.0,183.55,183.49,33.54712107]
[1734971570542,25.0,183.58,183.53,0.12549]
[1734971570832,25.0,183.6,183.53,33.54712107]
[1734971571002,25.0,183.59,183.55,33.54712107]
[1734971571202,25.0,183.61,183.55,33.54712107]
[1734971571409,25.0,183.61,183.55,0.12549]
[1734971571832,25.0,183.61,183.55,33.54712107]
[1734971571998,25.0,183.61,183.57,0.12549]
[1734971573099,25.0,183.7,183.63,20.0]
[1734971573307,6.5309,183.73,183.69,33.42163107]
[1734971573620,25.0,183.76,183.71,33.42163107]
[1734971573810,25.0,183.75,183.7,33.42163107]
[1734971574009,1.6745,183.77,183.71,33.42163107]
[1734971574010,25.0,183.74,183.71,33.42163107]
[1734971574212,25.0,183.75,183.71,33.42163107]
[1734971575136,25.0,183.76,183.7,33.42163107]
[1734971575538,25.0,183.75,183.71,33.42163107]
[1734971576330,25.0,183.74,183.68,33.42163107]
[1734971576641,25.0,183.71,183.65,33.42163107]
[1734971576804,25.0,183.69,183.65,33.42163107]
[1734971577206,25.0,183.73,183.66,33.42163107]
[1734971577538,25.0,183.75,183.67,33.42163107]
[1734971577845,25.0,183.72,183.68,33.42163107]
[1734971578213,25.0,183.76,183.68,33.42163107]
[1734971578528,25.0,183.75,183.67,33.42163107]
[1734971579543,25.0,183.74,183.68,33.42163107]
[1734971579719,25.0,183.74,183.67,33.42163107]
[1734971580039,25.0,183.74,183.66,33.42163107]
[1734971580210,25.0,183.74,183.67,33.42163107]
[1734971581035,25.0,183.72,183.65,33.42163107]
[1734971581343,25.0,183.76,183.72,0.12549]
[1734971581506,25.0,183.82,183.75,33.42163107]
[1734971581707,25.0,183.81,183.76,33.42163107]
[1734971582009,25.0,183.81,183.75,33.42163107]
[1734971582240,25.0,183.8,183.75,20.5134714]
[1734971582800,25.0,183.79,183.74,20.5134714]
[1734971583234,25.0,183.79,183.75,20.5134714]
[1734971583533,25.0,183.82,183.77,20.5134714]
[1734971583734,25.0,183.82,183.8,20.5134714]
[1734971583934,25.0,183.84,183.81,20.5134714]
[1734971584237,25.0,183.87,183.8,20.5134714]
[1734971584468,6.0491,183.88,183.81,20.5134714]
[1734971584469,25.0,183.85,183.81,20.5134714]
[1734971584607,25.0,183.87,183.81,20.5134714]
[1734971584806,25.0,183.87,183.82,20.5134714]
[1734971585032,25.0,183.85,183.81,20.5134714]
[1734971585344,25.0,183.87,183.82,20.5134714]
[1734971585505,6.0491,183.88,183.84,20.5134714]
[1734971585707,25.0,183.9,183.86,20.5134714]
[1734971585914,25.0,183.89,183.85,20.5134714]
[1734971586418,25.0,183.91,183.85,33.29869404]
[1734971586737,25.0,183.89,183.83,33.29869404]
[1734971586913,25.0,183.89,183.79,33.29869404]
[1734971587105,25.0,183.88,183.79,33.29869404]
[1734971587314,25.0,183.87,183.79,33.29869404]
[1734971587835,25.0,183.87,183.78,33.29869404]
[1734971588036,25.0,183.86,183.77,33.29869404]
[1734971588244,25.0,183.86,183.76,33.29869404]
[1734971588449,25.0,183.86,183.75,33.29869404]
[1734971588740,25.0,183.83,183.74,33.29869404]
[1734971588945,36.1444,183.94,183.72,33.29869404]
[1734971588946,6.4143,183.81,183.72,33.29869404]
[1734971589112,25.0,183.79,183.7,33.29869404]
[1734971589316,25.0,183.75,183.67,33.29869404]
[1734971590015,25.0,183.79,183.71,33.42418404]
[1734971590342,25.0,183.8,183.74,33.29869404]
[1734971590645,25.0,183.79,183.75,33.29869404]
[1734971591150,25.0,183.76,183.7,33.29869404]
[1734971591335,25.0,183.79,183.7,33.29869404]
[1734971591914,25.0,183.78,183.7,33.29869404]
[1734971592256,25.0,183.77,183.71,0.12549]
[1734971592549,25.0,183.79,183.76,33.29869404]
[1734971592736,25.0,183.84,183.76,33.29869404]
[1734971592945,25.0,183.83,183.76,33.29869404]
[1734971593925,25.0,183.82,183.76,33.29869404]
[1734971594449,25.0,183.82,183.77,33.29869404]
[1734971595153,25.0,183.81,183.78,33.29869404]
[1734971595346,25.0,183.81,183.77,33.29869404]
[1734971595849,25.0,183.84,183.78,33.29869404]
[1734971596055,25.0,183.84,183.79,33.29869404]
[1734971596360,25.0,183.84,183.77,33.29869404]
[1734971597064,25.0,183.84,183.76,33.42418404]
[1734971597241,25.0,183.84,183.76,33.29869404]
[1734971597447,25.0,183.83,183.73,33.29869404]
[1734971597764,25.0,183.83,183.7,33.29869404]
[1734971598059,25.0,183.82,183.69,33.29869404]
[1734971598359,25.0,183.82,183.7,33.29869404]
[1734971598532,25.0,183.78,183.69,33.29869404]
[1734971599442,25.0,183.77,183.66,33.29869404]
[1734971599636,25.0,183.77,183.67,33.29869404]
[1734971599950,25.0,183.76,183.66,33.29869404]
[1734971600258,25.0,183.71,183.63,33.29869404]
[1734971600472,25.0,183.7,183.61,46.91439404]
[1734971600757,25.0,183.7,183.56,27.2379]
[1734971600758,25.0,183.7,183.6,33.29869404]
[1734971600963,25.0,183.69,183.6,33.29869404]
[1734971601137,25.0,183.65,183.57,33.29869404]
[1734971601343,25.0,183.62,183.54,33.29869404]
[1734971601665,25.0,183.61,183.53,33.29869404]
[1734971602036,25.02604335,183.6,183.52,33.29869404]
[1734971602233,25.0,183.59,183.57,33.29869404]
[1734971602449,25.0,183.63,183.58,33.29869404]
[1734971602639,0.02604335,183.59,183.56,33.29869404]
[1734971602832,0.02604335,183.59,183.52,0.12549]
[1734971602833,0.02604335,183.59,183.57,33.29869404]
[1734971603042,0.02604335,183.59,183.58,33.29869404]
[1734971603661,0.02604335,183.59,183.58,33.42418404]
[1734971604468,0.02604335,183.59,183.58,57.20106804]
[1734971604632,25.0,183.61,183.58,57.07557804]
[1734971604958,25.0,183.61,183.6,33.29869404]
[1734971605466,25.0,183.61,183.6,33.42418404]
[1734971605664,25.0,183.71,183.59,33.29869404]
[1734971605961,25.0,183.67,183.57,33.29869404]
[1734971606366,25.0,183.67,183.58,33.29869404]
[1734971606532,25.0,183.67,183.57,33.29869404]
[1734971607338,25.0,183.67,183.58,33.29869404]
[1734971607638,25.0,183.66,183.57,33.29869404]
[1734971608061,25.0,183.65,183.58,33.29869404]
[1734971608364,25.0,183.64,183.58,20.55232759]
[1734971608851,25.0,183.64,183.56,20.55232759]
[1734971609055,25.0,183.64,183.59,20.55232759]
[1734971609357,25.0,183.64,183.6,20.55232759]
[1734971609658,25.0,183.64,183.61,20.55232759]
[1734971609865,25.0,183.71,183.62,20.55232759]
[1734971610547,1.6188,183.73,183.6,20.55232759]
[1734971610548,25.0,183.69,183.6,20.55232759]
[1734971611263,25.0,183.69,183.59,20.55232759]
[1734971612360,1.6188,183.73,183.57,13.6187]
[1734971612361,25.0,183.68,183.58,20.55232759]
[1734971612852,25.0,183.68,183.59,20.55232759]
[1734971613551,25.0,183.72,183.63,20.55232759]
[1734971613754,25.0,183.71,183.63,20.55232759]
[1734971613953,25.0,183.71,183.62,20.55232759]
[1734971614156,25.0,183.68,183.65,20.55232759]
[1734971614379,25.0,183.7,183.67,20.55232759]
[1734971614557,25.0,183.7,183.66,20.55232759]
[1734971614970,25.0,183.68,183.61,20.55232759]
[1734971615180,25.0,183.72,183.64,20.55232759]
[1734971615350,25.0,183.71,183.65,20.55232759]
[1734971615552,25.0,183.71,183.64,20.55232759]
[1734971615980,25.0,183.69,183.6,20.55232759]
[1734971616159,25.0,183.68,183.59,20.55232759]
[1734971616482,25.0,183.68,183.58,20.55232759]
[1734971617094,25.0,183.66,183.58,20.55232759]
[1734971617291,25.0,183.64,183.56,20.55232759]
[1734971617463,25.0,183.64,183.58,20.55232759]
[1734971618168,25.0,183.64,183.56,20.55232759]
[1734971618358,25.0,183.64,183.57,20.55232759]
[1734971619161,25.0,183.64,183.58,20.55232759]
[1734971619362,25.0,183.64,183.59,20.55232759]
[1734971620669,25.0,183.64,183.58,20.55232759]
[1734971620883,25.0,183.63,183.58,20.55232759]
[1734971621186,25.0,183.63,183.56,20.55232759]
[1734971621591,4.0829,183.7,183.55,20.55232759]
[1734971621592,25.0,183.62,183.55,20.55232759]
[1734971621886,25.0,183.61,183.58,20.55232759]
[1734971622087,25.0,183.6,183.57,20.55232759]
[1734971622271,25.0,183.6,183.56,20.55232759]
[1734971622475,25.0,183.6,183.57,20.55232759]
[1734971622794,25.0,183.6,183.56,20.55232759]
[1734971623466,25.0,183.6,183.57,20.55232759]
[1734971623865,25.0,183.6,183.59,20.67781759]
[1734971624165,25.0,183.67,183.6,23.902374]
[1734971624384,25.0,183.67,183.64,20.55232759]
[1734971625186,25.0,183.68,183.62,20.55232759]
[1734971625484,25.0,183.66,183.6,20.55232759]
[1734971625881,25.0,183.64,183.58,20.55232759]
[1734971626082,25.0,183.62,183.56,20.55232759]
[1734971626965,25.0,183.62,183.57,20.55232759]
[1734971627180,25.0,183.65,183.6,20.55232759]
[1734971627485,25.0,183.67,183.6,20.55232759]
[1734971627860,25.0,183.66,183.59,20.55232759]
[1734971628365,25.0,183.64,183.56,20.55232759]
[1734971628580,25.0,183.61,183.54,20.55232759]
[1734971629161,25.0,183.61,183.48,13.6254]
[1734971629162,25.0,183.59,183.53,20.55232759]
[1734971629390,25.0,183.57,183.55,20.55232759]
[1734971629585,4.0838,183.65,183.54,20.55232759]
[1734971629586,25.0,183.63,183.54,20.55232759]
[1734971629797,25.0,183.63,183.52,20.55232759]
[1734971630070,26.6727,183.63,183.52,20.55232759]
[1734971631264,6.0918,183.58,183.5,20.55232759]
[1734971631462,25.0,183.57,183.5,20.55232759]
[1734971631661,25.0,183.56,183.51,20.55232759]
[1734971632279,25.0,183.55,183.49,20.55232759]
[1734971632463,25.0,183.52,183.44,20.55232759]
[1734971632674,25.0,183.49,183.44,20.55232759]
[1734971633759,25.0,183.46,183.41,20.55232759]
[1734971634083,25.0,183.46,183.4,34.18352759]
[1734971634403,25.0,183.46,183.39,20.55232759]
[1734971634569,25.0,183.45,183.39,20.55232759]
[1734971634770,25.0,183.44,183.33,13.636]
[1734971635103,25.0,183.42,183.35,20.55232759]
[1734971635403,25.0,183.39,183.34,20.55232759]
[1734971635708,25.0,183.38,183.32,20.55232759]
[1734971635907,25.0,183.37,183.34,20.55232759]
[1734971636064,25.0,183.44,183.36,20.55232759]
[1734971636271,25.0,183.44,183.31,0.8179893]
[1734971636272,25.0,183.42,183.38,20.55232759]
[1734971637098,25.0,183.39,183.31,0.8179893]
[1734971637296,20.0,183.35,183.24,28.90647113]
[1734971637497,25.0,183.3,183.24,28.90647113]
[1734971637806,25.0,183.29,183.24,8.35414354]
[1734971637966,25.0,183.25,183.24,8.35414354]
[1734971638301,25.0,183.28,183.24,8.35414354]
[1734971639567,25.0,183.26,183.24,8.35414354]
[1734971639897,25.0,183.25,183.24,8.35414354]
[1734971640803,25.0,183.28,183.24,8.35414354]
[1734971641395,25.0,183.28,183.25,0.12549]
[1734971641599,25.0,183.29,183.27,20.55232759]
[1734971641899,25.0,183.34,183.28,20.55232759]
[1734971642063,25.0,183.34,183.29,20.55232759]
[1734971642398,25.0,183.33,183.3,20.55232759]
[1734971642597,25.0,183.35,183.29,20.55232759]
[1734971642790,25.0,183.34,183.32,20.55232759]
[1734971643293,25.0,183.38,183.33,20.55232759]
[1734971643603,25.0,183.39,183.34,23.776884]
[1734971643770,25.0,183.37,183.31,20.55232759]
[1734971643977,25.0,183.35,183.27,20.55232759]
[1734971644301,6.0925,183.41,183.25,20.55232759]
[1734971644302,25.0,183.33,183.25,20.55232759]
[1734971644668,25.0,183.32,183.27,20.55232759]
[1734971644869,25.0,183.39,183.3,0.12549]
[1734971645076,25.0,183.39,183.31,0.12549]
[1734971645278,6.0925,183.41,183.31,0.12549]
[1734971645279,25.0,183.37,183.33,0.12549]
[1734971645905,25.0,183.37,183.32,0.12549]
[1734971649103,25.0,183.34,183.25,20.55232759]
[1734971649402,25.0,183.31,183.22,20.55232759]